fUSD/lending_fUSD_20240503
["ID","MTS","AMOUNT","RATE_DAILY","PERIOD"]
[325316612,1714711832924,-275.0,0.00023952,2]
[325316613,1714711832933,-158.877,0.00023952,2]
[325316614,1714711832942,-169.81,0.00024035,2]
[325316615,1714711832951,-157.050313,0.00024248,6]
[325316616,1714711832961,-163.28,0.00024329,15]
[325316617,1714711832971,-157.050313,0.00024348,4]
[325316618,1714711832981,-157.050313,0.00024448,6]
[325316619,1714711832991,-157.050313,0.00024548,4]
[325316620,1714711833000,-157.050313,0.00024648,6]
[325316621,1714711833014,-200.0,0.00024658,2]
[325316622,1714711833023,-818.02021184,0.00024744,2]
[325316623,1714711833032,-252.2694891,0.00024747,2]
[325316624,1714711833041,-157.050313,0.00024748,4]
[325316625,1714711833051,-549.76336,0.0002475,2]
[325316626,1714711833060,-56315.4083,0.00024799,2]
[325316627,1714711833070,-1332.9709,0.00024799,2]
[325316628,1714711833079,-200.0,0.00024844,2]
[325316629,1714711833088,-157.050313,0.00024848,6]
[325316630,1714711833098,-163.06385102,0.00024856,2]
[325316631,1714711833107,-255.27,0.0002489,2]
[325316632,1714711833116,-1674.23545268,0.00024898,2]
[325316633,1714711833125,-51330.6597,0.00024899,2]
[325316634,1714711833134,-3009.3,0.00024899,2]
[325316635,1714711833143,-1000.0,0.00024899,2]
[325316636,1714711833152,-170.73232031,0.00024899,2]
[325316637,1714711833161,-512.47394926,0.00024899,2]
[325316638,1714711833170,-1004.0,0.000249,5]
[325316639,1714711833179,-278.92060217,0.000249,2]
[325316640,1714711833187,-1000.0,0.000249,5]
[325316641,1714711833197,-1000.0,0.000249,5]
[325316642,1714711833206,-1000.0,0.000249,5]
[325316643,1714711833215,-1001.0,0.000249,4]
[325316644,1714711833224,-1001.0,0.000249,5]
[325316645,1714711833233,-336.39010992,0.000249,2]
[325316646,1714711833242,-199.43359741,0.000249,2]
[325316647,1714711833250,-151.87422456,0.000249,2]
[325316648,1714711833259,-172.49380918,0.000249,2]
[325316649,1714711833269,-153.96212878,0.000249,2]
[325316650,1714711833278,-3757.63110716,0.000249,2]
[325316651,1714711833287,-174.60382681,0.000249,4]
[325316652,1714711833295,-4641.01887455,0.000249,2]
[325316653,1714711833305,-507.22210401,0.000249,2]
[325316654,1714711833317,-778.47979354,0.000249,2]
[325316655,1714711833326,-200.0,0.00024906,2]
[325316656,1714711833335,-1000.0,0.00024906,2]
[325316657,1714711833344,-200.0,0.00024906,2]
[325316658,1714711833353,-500.0,0.00024906,2]
[325316659,1714711833363,-200.0,0.00024906,2]
[325316660,1714711833373,-1000.0,0.00024907,2]
[325316661,1714711833384,-200.0,0.00024907,2]
[325316662,1714711833394,-200.0,0.00024907,2]
[325316663,1714711833403,-1000.0,0.00024907,2]
[325316664,1714711833412,-1000.0,0.00024907,2]
[325316665,1714711833421,-500.0,0.00024907,2]
[325316666,1714711833430,-500.0,0.00024907,2]
[325316667,1714711833440,-200.0,0.00024907,2]
[325316668,1714711833449,-157.050313,0.00024948,4]
[325316669,1714711833459,-1500.0,0.00024979,2]
[325316670,1714711833469,-190.39113468,0.00024989,2]
[325316671,1714711833478,-255.27,0.00024989,2]
[325316672,1714711833487,-255.27,0.00024989,2]
[325316673,1714711833497,-255.27,0.00024989,2]
[325316674,1714711833506,-255.27,0.0002499,2]
[325316675,1714711833515,-190.39113468,0.0002499,2]
[325316676,1714711833525,-255.27,0.0002499,2]
[325316677,1714711833534,-255.27,0.0002499,2]
[325316678,1714711833544,-255.27,0.0002499,2]
[325316679,1714711833553,-255.27,0.0002499,2]
[325316680,1714711833562,-255.27,0.0002499,2]
[325316681,1714711833572,-216.56959659,0.00024997,2]
[325316682,1714711833582,-275.16940529,0.00024997,2]
[325316683,1714711833591,-158.1052925,0.00024997,2]
[325316684,1714711833600,-504.26729214,0.00024997,2]
[325316685,1714711833610,-235.10557688,0.00024997,2]
[325316686,1714711833619,-263.43174659,0.00024998,2]
[325316687,1714711833628,-155.35560422,0.00024998,2]
[325316688,1714711833638,-951.82711454,0.00024998,2]
[325316689,1714711833648,-500.0,0.00024998,2]
[325316690,1714711833658,-14503.78,0.00024998,2]
[325316691,1714711833667,-616.51901983,0.00024999,2]
[325316692,1714711833677,-1044.61304098,0.00024999,2]
[325316693,1714711833686,-150.0,0.00024999,10]
[325316694,1714711833695,-150.0,0.00024999,10]
[325316695,1714711833705,-150.0,0.00024999,10]
[325316696,1714711833714,-150.0,0.00024999,10]
[325316697,1714711833723,-150.0,0.00024999,10]
[325316698,1714711833732,-150.0,0.00024999,10]
[325316699,1714711833741,-150.0,0.00024999,10]
[325316700,1714711833751,-50847.13276941,0.00024999,2]
[325316701,1714711834411,-69407.64115871,0.00024999,2]
[325316702,1714711834434,-273.96949246,0.00024999,2]
[325316703,1714711834466,-556.45830457,0.00024999,2]
[325316714,1714711838198,-244.28858097,0.00019178,2]
[325316715,1714711838208,-5987.31141903,0.00024999,2]
[325316716,1714711838220,-3275.80353,0.00024999,2]
[325316717,1714711838285,-522155.87623451,0.00024999,2]
[325316718,1714711838294,-151.0,0.00024999,7]
[325316719,1714711838306,-548.929813,0.00024999,7]
[325316720,1714711838317,-345.647494,0.00024999,7]
[325316721,1714711838330,-548.929813,0.00024999,7]
[325316722,1714711838340,-345.647494,0.00024999,7]
[325316723,1714711838351,-151.0,0.00024999,7]
[325316724,1714711838362,-204.347628,0.00024999,7]
[325316725,1714711838373,-204.347628,0.00024999,7]
[325316726,1714711838384,-151.0,0.00024999,7]
[325316727,1714711838393,-151.0,0.00024999,7]
[325316728,1714711838403,-153.327841,0.00024999,7]
[325316729,1714711838413,-153.327841,0.00024999,7]
[325316730,1714711838428,-316.8,0.00024999,7]
[325316731,1714711838438,-151.0,0.00024999,7]
[325316732,1714711838447,-151.0,0.00024999,7]
[325316733,1714711838458,-316.8,0.00024999,7]
[325316734,1714711838468,-389.780507,0.00024999,7]
[325316735,1714711838479,-389.780507,0.00024999,7]
[325316736,1714711838489,-357.476675,0.00024999,7]
[325316737,1714711838498,-357.476675,0.00024999,7]
[325316738,1714711838507,-460.658122,0.00024999,7]
[325316739,1714711838516,-949.474239,0.00024999,7]
[325316740,1714711838525,-460.658122,0.00024999,7]
[325316741,1714711838535,-949.474239,0.00024999,7]
[325316742,1714711838544,-151.0,0.00024999,7]
[325316743,1714711838553,-151.0,0.00024999,7]
[325316744,1714711838565,-151.0,0.00024999,7]
[325316745,1714711838578,-151.0,0.00024999,7]
[325316746,1714711838587,-151.0,0.00024999,7]
[325316747,1714711838596,-445.672558,0.00024999,7]
[325316748,1714711838605,-151.0,0.00024999,7]
[325316749,1714711838614,-445.672558,0.00024999,7]
[325316750,1714711838624,-151.0,0.00024999,7]
[325316751,1714711838633,-1649.804581,0.00024999,7]
[325316752,1714711838643,-1649.804581,0.00024999,7]
[325316753,1714711838653,-151.0,0.00024999,7]
[325316754,1714711838663,-158.796204,0.00024999,7]
[325316755,1714711838672,-158.796204,0.00024999,7]
[325316756,1714711838682,-1319.581356,0.00024999,7]
[325316757,1714711838691,-153.328409,0.00024999,7]
[325316758,1714711838701,-1319.581356,0.00024999,7]
[325316759,1714711838710,-153.328409,0.00024999,7]
[325316760,1714711838720,-258.43022,0.00024999,7]
[325316761,1714711838730,-151.0,0.00024999,7]
[325316762,1714711838740,-258.43022,0.00024999,7]
[325316763,1714711838750,-151.0,0.00024999,7]
[325316764,1714711838760,-151.0,0.00024999,7]
[325316765,1714711838769,-888.0,0.00024999,2]
[325316766,1714711838779,-150109.44271487,0.00025,5]
[325316767,1714711838791,-2603.10643675,0.00025,5]
[325316768,1714711838803,-654.21511587,0.00025,5]
[325316769,1714711838814,-580.4,0.00025,5]
[325316770,1714711838850,-2785.30216989,0.00025,5]
[325316771,1714711838860,-12154.7798935,0.00025,2]
[325316772,1714711838871,-1487.8356618,0.00025,2]
[325316773,1714711840248,-364.1197689,0.00025,2]
[325316774,1714711841520,-270.14,0.00024989,2]
[325316775,1714711841529,-270.14,0.00024989,2]
[325316776,1714711841539,-270.14,0.00024989,2]
[325316777,1714711841548,-270.14,0.00024989,2]
[325316778,1714711841557,-270.14,0.00024989,2]
[325316779,1714711841565,-2564.03702434,0.00025,2]
[325316780,1714711841578,-4280.59008963,0.00025,2]
[325316781,1714711841590,-6648.31538408,0.00025,2]
[325316782,1714711841601,-3339.87943909,0.00025,2]
[325316783,1714711841624,-263.59582938,0.00025,2]
[325316784,1714711841636,-652.13429658,0.00025,2]
[325316785,1714711841647,-13444.97040638,0.00025,2]
[325316786,1714711841672,-16935.43593345,0.00025,2]
[325316787,1714711841683,-6966.81347614,0.00025,2]
[325316788,1714711841695,-275.950685,0.00025,2]
[325316816,1714711843150,-976.920342,0.00025,2]
[325316818,1714711843162,-383.48999995,0.00025,2]
[325316819,1714711843174,-863.04239845,0.00025,2]
[325316820,1714711843186,-1487.23232148,0.00025,2]
[325316821,1714711843197,-547.46957672,0.00025,2]
[325316822,1714711843233,-291.942,0.00023952,2]
[325316823,1714711843242,-3544.1016153,0.00025,2]
[325316824,1714711843418,-13367.61577987,0.00025,2]
[325316825,1714711843430,-6748.22690148,0.00025,2]
[325316826,1714711843490,-8008.02896587,0.00025,2]
[325316827,1714711843536,-320.40835709,0.00025,2]
[325316828,1714711843547,-4039.54,0.00025,2]
[325316834,1714711846102,-21881.25657339,0.00025,2]
[325316835,1714711846114,-31474.75877429,0.00025,2]
[325316836,1714711846126,-1493.16874186,0.00025,2]
[325316837,1714711846255,-546.49192064,0.00025,2]
[325316838,1714711846329,-24986.01087538,0.00025,2]
[325316839,1714711846398,-7148.8,0.00025,2]
[325316840,1714711846411,-602.34,0.00025,2]
[325316842,1714712222734,150.0,0.00010993,2]
[325316845,1714712465771,367.91576555,0.00010993,2]
[325316846,1714712470627,1479.73067665,0.00010993,2]
[325316847,1714712473786,363.20961275,0.00010993,2]
[325316848,1714712510016,288.72057434,0.00010993,2]
[325316849,1714712527996,335.90396359,0.00010993,2]
[325316869,1714712961545,-364.13980716,0.00012346,2]
[325316870,1714712961567,-3074.61500758,0.00012346,2]
[325316871,1714712961589,-527.60952804,0.00012347,2]
[325316872,1714712961611,-155.0,0.00012348,2]
[325316873,1714712961632,-585.85556778,0.0001236,2]
[325316874,1714712961653,-352.78008944,0.00012395,2]
[325316895,1714713032733,-527.60952804,0.00012332,2]
[325316896,1714713032744,-3236.35450372,0.00012332,2]
[325316897,1714713032754,-945.417731,0.00012333,2]
[325316898,1714713032765,-2093.11759709,0.00012395,2]
[325316899,1714713032777,-6305.28577133,0.00012867,2]
[325316900,1714713032787,-2212.60577074,0.00012899,2]
[325316901,1714713032798,-2212.60577074,0.00012899,2]
[325316902,1714713032808,-170.77773329,0.00012899,2]
[325316903,1714713032819,-214.83443712,0.000129,2]
[325316904,1714713032829,-153.72,0.00012989,2]
[325316905,1714713032839,-190.39113468,0.0001299,2]
[325316906,1714713032850,-347.30157064,0.00012997,2]
[325316907,1714713032861,-156.24264893,0.00012997,2]
[325316908,1714713032872,-281.44596006,0.00012997,2]
[325316909,1714713032882,-170.94453194,0.00012997,2]
[325316910,1714713032896,-155.37261707,0.00012997,2]
[325316911,1714713032907,-539.71422867,0.00012997,2]
[325316912,1714713032918,-364.13980716,0.00012997,2]
[325316913,1714713032930,-155.74474673,0.00012997,2]
[325316914,1714713032941,-2824.95767989,0.00012997,2]
[325316915,1714713032951,-1380.97311592,0.00012997,2]
[325316916,1714713032962,-1534.20628133,0.00012999,2]
[325316917,1714713032975,-384.93806742,0.00012999,2]
[325316918,1714713033002,-6000.0,0.00012999,2]
[325316928,1714713038491,-292.82652537,0.00012999,2]
[325316929,1714713038503,-43531.79030754,0.00012999,2]
[325316930,1714713038522,-5058.29415251,0.00012999,2]
[325316931,1714713038556,-1867.54663435,0.00012999,2]
[325316932,1714713038586,-463486.27426599,0.00012999,2]
[325316933,1714713038596,-18573.408,0.00012999,2]
[325316934,1714713038606,-163655.01467509,0.00013,2]
[325316935,1714713038616,-1000.0,0.00013,2]
[325316936,1714713038625,-188.73221684,0.00013,2]
[325316937,1714713038634,-499.99,0.00015112,2]
[325316938,1714713038645,-150.99,0.00015112,2]
[325316939,1714713038655,-1280.12,0.00015795,2]
[325316940,1714713038666,-170.77773328,0.00015899,2]
[325316941,1714713038677,-250.0,0.00016132,2]
[325316942,1714713038686,-161.7,0.00016613,2]
[325316943,1714713038696,-23900.0,0.00017176,2]
[325316944,1714713038709,-150.0,0.00017353,2]
[325316945,1714713038719,-183.25,0.0001762,2]
[325316946,1714713038729,-736.21819071,0.0001788,2]
[325316947,1714713038739,-736.21819062,0.0001788,2]
[325316948,1714713038749,-736.21819062,0.0001788,2]
[325316949,1714713038760,-640.0,0.00017884,2]
[325316950,1714713038771,-736.21819062,0.00018899,2]
[325316951,1714713038781,-170.77773328,0.000189,2]
[325316952,1714713038791,-200.0,0.00019,3]
[325316953,1714713038800,-183.25,0.00019822,2]
[325316955,1714713038810,-200.0,0.0002,2]
[325316957,1714713038819,-640.0,0.0002012,2]
[325316959,1714713038828,-360.0,0.00020186,2]
[325316961,1714713038837,-736.21819062,0.00020899,2]
[325316963,1714713038846,-155.0,0.000209,2]
[325316964,1714713038856,-296.52074012,0.00021,2]
[325316965,1714713038865,-170.77773328,0.000219,2]
[325316966,1714713038874,-250.0,0.00021918,2]
[325316967,1714713038883,-150.0,0.00021918,2]
[325316968,1714713038892,-177.0,0.00022,2]
[325316969,1714713038902,-183.25,0.00022025,2]
[325316970,1714713038911,-3220.0,0.000223,3]
[325316971,1714713038920,-640.0,0.00022355,2]
[325316972,1714713038930,-360.0,0.00022709,2]
[325316973,1714713038939,-736.21819062,0.000229,2]
[325316974,1714713038949,-400.0,0.000236,2]
[325316975,1714713038958,-7485.0,0.00023732,2]
[325316976,1714713038968,-9183.39509588,0.00023748,7]
[325316977,1714713038977,-150.0,0.00023751,10]
[325316978,1714713038987,-150.807,0.00023752,2]
[325316979,1714713038996,-421.012,0.00023752,2]
[325316980,1714713039005,-1483.097,0.00023752,2]
[325316981,1714713039015,-2456.57,0.00023752,2]
[325316982,1714713039024,-216.0,0.00023752,2]
[325316983,1714713039033,-1647.783,0.00023752,2]
[325316984,1714713039043,-444.287,0.00023752,2]
[325316985,1714713039052,-1143.459,0.00023752,2]
[325316986,1714713039063,-3143.267,0.00023752,2]
[325316987,1714713039073,-222.72,0.0002379,2]
[325316988,1714713039084,-5899.0,0.00023892,2]
[325316989,1714713039093,-5737.0,0.00023892,2]
[325316990,1714713039103,-24602.527,0.00023892,2]
[325316991,1714713039113,-2292.0,0.00023892,2]
[325316992,1714713039123,-500.0,0.00023933,2]
[325316993,1714713039133,-1000.0,0.00023933,2]
[325316994,1714713039142,-150.0,0.00023951,10]
[325316995,1714713039152,-1398.818,0.00023952,2]
[325316996,1714713039162,-2303.491,0.00023952,2]
[325316997,1714713039171,-973.257,0.00023952,2]
[325316998,1714713039180,-463.573,0.00023952,2]
[325316999,1714713039190,-1218.0,0.00023952,2]
[325317000,1714713039199,-1260.514,0.00023952,2]
[325317001,1714713039208,-542.0,0.00023952,2]
[325317002,1714713039218,-309.033,0.00023952,2]
[325317003,1714713039228,-437.0,0.00023952,2]
[325317004,1714713039237,-610.0,0.00023952,2]
[325317005,1714713039248,-808.0,0.00023952,2]
[325317006,1714713039256,-1786.0,0.00023952,2]
[325317007,1714713039266,-151.013,0.00023952,2]
[325317008,1714713039275,-183.25,0.00024227,2]
[325317009,1714713039286,-157.050314,0.00024248,4]
[325317010,1714713039295,-163.28,0.00024329,15]
[325317011,1714713039305,-157.050314,0.00024348,6]
[325317012,1714713039314,-157.050314,0.00024448,4]
[325317013,1714713039324,-253.78538962,0.00024498,2]
[325317014,1714713039336,-157.050314,0.00024548,6]
[325317015,1714713039346,-640.0,0.00024591,2]
[325317016,1714713039355,-157.050314,0.00024648,4]
[325317017,1714713039365,-15838.04,0.00024657,2]
[325317018,1714713039378,-15838.04,0.00024657,2]
[325317019,1714713039388,-15838.04,0.00024657,2]
[325317020,1714713039398,-200.0,0.00024658,2]
[325317021,1714713039415,-512.9575,0.00024699,2]
[325317022,1714713039427,-173.7418,0.00024699,2]
[325317023,1714713039437,-308.35760076,0.00024699,2]
[325317024,1714713039449,-171.93634809,0.00024699,2]
[325317025,1714713039465,-151.87422436,0.00024699,2]
[325317026,1714713039476,-184.67256595,0.000247,2]
[325317027,1714713039487,-3244.53777294,0.00024723,2]
[325317028,1714713039498,-157.050314,0.00024748,6]
[325317029,1714713039509,-2000.0,0.00024798,2]
[325317030,1714713039519,-151.0,0.00024798,7]
[325317031,1714713039530,-357.476675,0.00024798,7]
[325317032,1714713039540,-357.476675,0.00024798,7]
[325317033,1714713039551,-460.658122,0.00024798,7]
[325317034,1714713039562,-333.811523,0.00024798,7]
[325317035,1714713039574,-460.658122,0.00024798,7]
[325317036,1714713039585,-333.811523,0.00024798,7]
[325317037,1714713039597,-151.0,0.00024798,7]
[325317038,1714713039608,-151.0,0.00024798,7]
[325317039,1714713039620,-445.672558,0.00024798,7]
[325317040,1714713039631,-445.672558,0.00024798,7]
[325317041,1714713039643,-151.0,0.00024798,7]
[325317042,1714713039659,-153.206148,0.00024798,7]
[325317043,1714713039670,-151.0,0.00024798,7]
[325317044,1714713039682,-1649.804581,0.00024798,7]
[325317045,1714713039692,-1649.804581,0.00024798,7]
[325317046,1714713039704,-949.474239,0.00024798,7]
[325317047,1714713039716,-431.31477,0.00024798,7]
[325317048,1714713039726,-949.474239,0.00024798,7]
[325317049,1714713039737,-431.31477,0.00024798,7]
[325317050,1714713039751,-151.0,0.00024798,7]
[325317051,1714713039762,-151.0,0.00024798,7]
[325317052,1714713039777,-1366.466633,0.00024798,7]
[325317053,1714713039788,-1366.466633,0.00024798,7]
[325317054,1714713039799,-1255.367063,0.00024798,7]
[325317055,1714713039812,-1255.367063,0.00024798,7]
[325317056,1714713039828,-258.43022,0.00024798,7]
[325317057,1714713039844,-258.43022,0.00024798,7]
[325317058,1714713039856,-1437.064133,0.00024798,7]
[325317059,1714713039866,-1437.064133,0.00024798,7]
[325317060,1714713039879,-151.0,0.00024798,7]
[325317061,1714713039889,-646.188322,0.00024798,7]
[325317062,1714713039900,-646.188322,0.00024798,7]
[325317063,1714713039912,-15838.04,0.00024798,2]
[325317064,1714713039922,-202121.45831752,0.00024799,5]
[325317065,1714713039932,-40077.0838,0.00024799,2]
[325317066,1714713039942,-100000.0,0.00024799,2]
[325317067,1714713039952,-151.0,0.00024799,7]
[325317068,1714713039962,-151.0,0.00024799,7]
[325317069,1714713039972,-151.0,0.00024799,7]
[325317070,1714713039982,-151.0,0.00024799,7]
[325317071,1714713039992,-301.2616,0.00024799,7]
[325317072,1714713040001,-301.2616,0.00024799,7]
[325317073,1714713040011,-190.554086,0.00024799,7]
[325317074,1714713040020,-190.554086,0.00024799,7]
[325317075,1714713040031,-191.227713,0.00024799,7]
[325317076,1714713040040,-577.820856,0.00024799,7]
[325317077,1714713040050,-577.820856,0.00024799,7]
[325317078,1714713040060,-191.227713,0.00024799,7]
[325317079,1714713040069,-151.0,0.00024799,7]
[325317080,1714713040079,-1383.819895,0.00024799,7]
[325317081,1714713040088,-345.647494,0.00024799,7]
[325317082,1714713040098,-1055.258404,0.00024799,7]
[325317083,1714713040107,-1383.819895,0.00024799,7]
[325317084,1714713040117,-345.647494,0.00024799,7]
[325317085,1714713040127,-1055.258404,0.00024799,7]
[325317086,1714713040136,-151.0,0.00024799,7]
[325317088,1714713040146,-1185.713828,0.00024799,7]
[325317090,1714713040156,-151.0,0.00024799,7]
[325317092,1714713040166,-1185.713828,0.00024799,7]
[325317093,1714713040175,-151.0,0.00024799,7]
[325317094,1714713040185,-151.0,0.00024799,7]
[325317095,1714713040194,-151.0,0.00024799,7]
[325317096,1714713040204,-151.0,0.00024799,7]
[325317097,1714713040213,-151.0,0.00024799,7]
[325317098,1714713040222,-406.038925,0.00024799,7]
[325317099,1714713040232,-151.0,0.00024799,7]
[325317100,1714713040241,-406.038925,0.00024799,7]
[325317101,1714713040250,-151.0,0.00024799,7]
[325317104,1714713040260,-188.20858,0.00024799,7]
[325317107,1714713040269,-151.0,0.00024799,7]
[325317110,1714713040278,-151.0,0.00024799,7]
[325317112,1714713040287,-227.648126,0.00024799,7]
[325317114,1714713040297,-227.648126,0.00024799,7]
[325317116,1714713040306,-151.0,0.00024799,7]
[325317118,1714713040315,-227.648126,0.00024799,7]
[325317120,1714713040324,-227.648126,0.00024799,7]
[325317122,1714713040333,-458.292197,0.00024799,7]
[325317124,1714713040343,-458.292197,0.00024799,7]
[325317126,1714713040352,-458.292197,0.00024799,7]
[325317128,1714713040361,-458.292197,0.00024799,7]
[325317130,1714713040375,-182.382514,0.00024799,7]
[325317132,1714713040386,-182.382514,0.00024799,7]
[325317134,1714713040395,-341.409824,0.00024799,7]
[325317136,1714713040406,-341.409824,0.00024799,7]
[325317138,1714713040418,-341.409824,0.00024799,7]
[325317140,1714713040427,-151.0,0.00024799,7]
[325317142,1714713040436,-151.0,0.00024799,7]
[325317144,1714713040445,-151.0,0.00024799,7]
[325317146,1714713040456,-151.0,0.00024799,7]
[325317148,1714713040466,-331.20014,0.00024799,7]
[325317150,1714713040475,-331.20014,0.00024799,7]
[325317151,1714713040485,-331.20014,0.00024799,7]
[325317152,1714713040494,-331.20014,0.00024799,7]
[325317153,1714713040504,-151.0,0.00024799,7]
[325317154,1714713040519,-151.0,0.00024799,7]
[325317155,1714713040528,-151.0,0.00024799,7]
[325317156,1714713040538,-151.0,0.00024799,7]
[325317157,1714713040547,-165.832736,0.00024799,7]
[325317158,1714713040556,-165.832736,0.00024799,7]
[325317159,1714713040565,-151.2656,0.00024799,7]
[325317160,1714713040574,-165.832736,0.00024799,7]
[325317161,1714713040584,-165.832736,0.00024799,7]
[325317162,1714713040593,-1221.744102,0.00024799,7]
[325317163,1714713040603,-1221.744102,0.00024799,7]
[325317164,1714713040612,-1221.744102,0.00024799,7]
[325317165,1714713040621,-1221.744102,0.00024799,7]
[325317166,1714713040631,-151.0,0.00024799,7]
[325317167,1714713040640,-151.0,0.00024799,7]
[325317168,1714713040649,-151.0,0.00024799,7]
[325317169,1714713040659,-151.0,0.00024799,7]
[325317170,1714713040668,-151.404717,0.00024799,7]
[325317171,1714713040677,-151.0,0.00024799,7]
[325317172,1714713040687,-167.496064,0.00024799,7]
[325317173,1714713040696,-167.496064,0.00024799,7]
[325317174,1714713040705,-167.496064,0.00024799,7]
[325317175,1714713040714,-167.496064,0.00024799,7]
[325317176,1714713040724,-357.476675,0.00024799,7]
[325317177,1714713040732,-357.476675,0.00024799,7]
[325317178,1714713040742,-460.658122,0.00024799,7]
[325317179,1714713040752,-151.0,0.00024799,7]
[325317180,1714713040762,-151.0,0.00024799,7]
[325317181,1714713040772,-333.811523,0.00024799,7]
[325317182,1714713040781,-151.0,0.00024799,7]
[325317183,1714713040790,-460.658122,0.00024799,7]
[325317184,1714713040800,-333.811523,0.00024799,7]
[325317185,1714713040809,-151.0,0.00024799,7]
[325317186,1714713040818,-151.0,0.00024799,7]
[325317187,1714713040827,-445.672558,0.00024799,7]
[325317188,1714713040836,-445.672558,0.00024799,7]
[325317189,1714713040845,-151.0,0.00024799,7]
[325317190,1714713040854,-151.0,0.00024799,7]
[325317191,1714713040864,-1649.804581,0.00024799,7]
[325317192,1714713040873,-1649.804581,0.00024799,7]
[325317193,1714713040882,-949.474239,0.00024799,7]
[325317194,1714713040891,-431.31477,0.00024799,7]
[325317195,1714713040902,-949.474239,0.00024799,7]
[325317196,1714713040911,-431.31477,0.00024799,7]
[325317197,1714713040920,-151.0,0.00024799,7]
[325317198,1714713040929,-151.0,0.00024799,7]
[325317199,1714713040938,-1366.466633,0.00024799,7]
[325317200,1714713040947,-1366.466633,0.00024799,7]
[325317201,1714713040957,-1255.367063,0.00024799,7]
[325317202,1714713040966,-1255.367063,0.00024799,7]
[325317203,1714713040975,-258.43022,0.00024799,7]
[325317204,1714713040984,-258.43022,0.00024799,7]
[325317205,1714713040993,-1437.064133,0.00024799,7]
[325317206,1714713041003,-1437.064133,0.00024799,7]
[325317207,1714713041012,-2223.912805,0.00024799,7]
[325317208,1714713041021,-2223.912805,0.00024799,7]
[325317209,1714713041030,-2223.912805,0.00024799,7]
[325317210,1714713041039,-151.0,0.00024799,7]
[325317211,1714713041048,-2223.912805,0.00024799,7]
[325317212,1714713041057,-151.0,0.00024799,7]
[325317213,1714713041067,-151.0,0.00024799,7]
[325317214,1714713041076,-646.188322,0.00024799,7]
[325317215,1714713041085,-646.188322,0.00024799,7]
[325317216,1714713041094,-151.0,0.00024799,7]
[325317217,1714713041103,-151.0,0.00024799,7]
[325317218,1714713041113,-151.0,0.00024799,7]
[325317219,1714713041122,-151.0,0.00024799,7]
[325317220,1714713041131,-151.0,0.00024799,7]
[325317221,1714713041140,-151.0,0.00024799,7]
[325317222,1714713041150,-151.0,0.00024799,7]
[325317223,1714713041161,-151.0,0.00024799,7]
[325317224,1714713041170,-151.0,0.00024799,7]
[325317225,1714713041179,-151.0,0.00024799,7]
[325317226,1714713041188,-151.0,0.00024799,7]
[325317227,1714713041198,-255.519644,0.00024799,7]
[325317228,1714713041207,-153.328409,0.00024799,7]
[325317229,1714713041216,-357.37468,0.00024799,7]
[325317230,1714713041225,-153.328409,0.00024799,7]
[325317231,1714713041235,-357.37468,0.00024799,7]
[325317232,1714713041244,-357.37468,0.00024799,7]
[325317233,1714713041253,-357.37468,0.00024799,7]
[325317234,1714713041262,-153.328409,0.00024799,7]
[325317235,1714713041271,-153.328409,0.00024799,7]
[325317236,1714713041281,-200.0,0.00024844,2]
[325317237,1714713041291,-163.06385101,0.00024856,2]
[325317238,1714713041300,-15838.04,0.00024899,2]
[325317239,1714713041310,-15838.04,0.00024899,2]